[Event "*** SCC Grand Prix: Titled Tuesday Blitz"]
[Site "Chess.com"]
[Date "2020.07.07"]
[Round "6"]
[White "Artur0208"]
[Black "EvgenyRomanov"]
[Result "1-0"]
[WhiteElo "2782"]
[BlackElo "2625"]
[TimeControl "180+1"]
[EndTime "11:05:33 PDT"]
[Termination "Artur0208 won by resignation"]

1. d4 {[%clk 0:03:00.9]} 1... d5 {[%clk 0:02:59.3]} 2. c4 {[%clk 0:03:00.3]}
2... dxc4 {[%clk 0:03:00.2]} 3. Nf3 {[%clk 0:02:53.7]} 3... e6 {[%clk
0:02:59.3]} 4. e3 {[%clk 0:02:53]} 4... b5 {[%clk 0:02:59.3]} 5. a4 {[%clk
0:02:49.4]} 5... b4 {[%clk 0:02:59.2]} 6. Bxc4 {[%clk 0:02:48.6]} 6... Nf6
{[%clk 0:02:59.7]} 7. O-O {[%clk 0:02:48.8]} 7... Be7 {[%clk 0:02:59.9]} 8. b3
{[%clk 0:02:47.6]} 8... O-O {[%clk 0:03:00]} 9. Bb2 {[%clk 0:02:48.2]} 9... Bb7
{[%clk 0:03:00.3]} 10. Nbd2 {[%clk 0:02:47.1]} 10... Nbd7 {[%clk 0:02:59]} 11.
a5 {[%clk 0:02:38]} 11... Rc8 {[%clk 0:02:55.3]} 12. Qe2 {[%clk 0:02:34.1]}
12... c5 {[%clk 0:02:53.8]} 13. Rfc1 {[%clk 0:02:24.4]} 13... Qc7 {[%clk
0:02:49.8]} 14. e4 {[%clk 0:02:16.8]} 14... Qb8 {[%clk 0:02:46.5]} 15. h3 {[%clk
0:01:50.8]} 15... cxd4 {[%clk 0:02:42.2]} 16. Bxd4 {[%clk 0:01:49.9]} 16... Nc5
{[%clk 0:02:39.9]} 17. Ne5 {[%clk 0:01:38.2]} 17... Rfd8 {[%clk 0:02:33.8]} 18.
Bb2 {[%clk 0:01:32.7]} 18... Ncxe4 {[%clk 0:02:26.6]} 19. Nxe4 {[%clk 0:01:32]}
19... Bxe4 {[%clk 0:02:22.7]} 20. Nxf7 {[%clk 0:01:24.6]} 20... Kxf7 {[%clk
0:02:09.6]} 21. Bxf6 {[%clk 0:01:22.8]} 21... Bxf6 {[%clk 0:02:04.9]} 22. Qxe4
{[%clk 0:01:22.9]} 22... Qe5 {[%clk 0:02:00.4]} 23. Qb7+ {[%clk 0:01:14]} 23...
Rc7 {[%clk 0:01:51.5]} 24. Qxb4 {[%clk 0:00:58.1]} 24... Qxa1 {[%clk 0:01:34]}
25. Rxa1 {[%clk 0:00:59]} 25... Bxa1 {[%clk 0:01:33.8]} 26. Qe1 {[%clk
0:00:59.2]} 26... Bf6 {[%clk 0:01:05.2]} 27. Qxe6+ {[%clk 0:00:57.5]} 27... Kf8
{[%clk 0:01:04.9]} 28. g4 {[%clk 0:00:44.5]} 28... Rcd7 {[%clk 0:00:45.1]} 29.
g5 {[%clk 0:00:42.1]} 29... Bd4 {[%clk 0:00:37.7]} 30. Kg2 {[%clk 0:00:41.1]}
1-0

[Event "*** SCC Grand Prix: Titled Tuesday Blitz"]
[Site "Chess.com"]
[Date "2020.07.07"]
[Round "6"]
[White "Munkhzul_Turmunkh"]
[Black "Stosk"]
[Result "1-0"]
[WhiteElo "2603"]
[BlackElo "2357"]
[TimeControl "180+1"]
[EndTime "11:05:34 PDT"]
[Termination "Munkhzul_Turmunkh won by checkmate"]

1. e4 {[%clk 0:03:00.9]} 1... c5 {[%clk 0:02:59.3]} 2. Nf3 {[%clk 0:03:00.5]}
2... Nc6 {[%clk 0:02:58.2]} 3. d4 {[%clk 0:03:00.2]} 3... cxd4 {[%clk
0:02:59.1]} 4. Nxd4 {[%clk 0:03:00.4]} 4... Nf6 {[%clk 0:02:55.8]} 5. Nc3 {[%clk
0:02:59.9]} 5... e6 {[%clk 0:02:53.3]} 6. Ndb5 {[%clk 0:02:58.9]} 6... Bb4
{[%clk 0:02:51.9]} 7. a3 {[%clk 0:02:58.3]} 7... Bxc3+ {[%clk 0:02:52.8]} 8.
Nxc3 {[%clk 0:02:58.1]} 8... d5 {[%clk 0:02:53.7]} 9. exd5 {[%clk 0:02:58.1]}
9... exd5 {[%clk 0:02:54.6]} 10. Bd3 {[%clk 0:02:57.8]} 10... d4 {[%clk
0:02:52.2]} 11. Ne2 {[%clk 0:02:57.7]} 11... Ng4 {[%clk 0:02:48.3]} 12. Bf4
{[%clk 0:02:48.4]} 12... O-O {[%clk 0:02:39.9]} 13. O-O {[%clk 0:02:47.7]} 13...
Re8 {[%clk 0:02:29]} 14. h3 {[%clk 0:02:45.3]} 14... Nge5 {[%clk 0:02:22.3]} 15.
Bb5 {[%clk 0:02:44.8]} 15... Qd5 {[%clk 0:02:16.4]} 16. Ba4 {[%clk 0:02:34.6]}
16... Bxh3 {[%clk 0:01:49.7]} 17. f3 {[%clk 0:02:17.5]} 17... Bf5 {[%clk
0:01:42.6]} 18. Ng3 {[%clk 0:02:13]} 18... Bg6 {[%clk 0:01:40.3]} 19. Re1 {[%clk
0:02:11.2]} 19... Nc4 {[%clk 0:01:29.9]} 20. Bb3 {[%clk 0:02:06.7]} 20... Qc5
{[%clk 0:01:21.5]} 21. Bxc4 {[%clk 0:02:03.6]} 21... Qxc4 {[%clk 0:01:16]} 22.
Ne4 {[%clk 0:02:03.7]} 22... Qb5 {[%clk 0:01:01.6]} 23. Qd2 {[%clk 0:01:54.3]}
23... Qd5 {[%clk 0:00:56.8]} 24. Nd6 {[%clk 0:01:50.8]} 24... Rxe1+ {[%clk
0:00:48.9]} 25. Rxe1 {[%clk 0:01:51.7]} 25... b6 {[%clk 0:00:46.9]} 26. Bg3
{[%clk 0:01:46]} 26... Rd8 {[%clk 0:00:44.8]} 27. Ne4 {[%clk 0:01:41.8]} 27...
h6 {[%clk 0:00:41.9]} 28. Bh4 {[%clk 0:01:37]} 28... Rd7 {[%clk 0:00:33.5]} 29.
Nf6+ {[%clk 0:01:04.6]} 29... gxf6 {[%clk 0:00:22.1]} 30. Qxh6 {[%clk 0:01:04]}
30... Ne7 {[%clk 0:00:01.8]} 31. Bxf6 {[%clk 0:01:03.2]} 31... Qh5 {[%clk
0:00:01.1]} 32. Qg7# {[%clk 0:01:02.7]} 1-0

[Event "*** SCC Grand Prix: Titled Tuesday Blitz"]
[Site "Chess.com"]
[Date "2020.07.07"]
[Round "6"]
[White "2nd_life"]
[Black "attack2mateU"]
[Result "1/2-1/2"]
[WhiteElo "2481"]
[BlackElo "2624"]
[TimeControl "180+1"]
[EndTime "11:05:36 PDT"]
[Termination "Game drawn by agreement"]

1. e4 {[%clk 0:03:00.9]} 1... c5 {[%clk 0:02:58.1]} 2. Nf3 {[%clk 0:03:00.7]}
2... d6 {[%clk 0:02:58.5]} 3. Bb5+ {[%clk 0:02:59.4]} 3... Nd7 {[%clk
0:02:58.2]} 4. c4 {[%clk 0:02:58.4]} 4... Nf6 {[%clk 0:02:57.2]} 5. Nc3 {[%clk
0:02:57.8]} 5... g6 {[%clk 0:02:53]} 6. d4 {[%clk 0:02:53.1]} 6... cxd4 {[%clk
0:02:49]} 7. Nxd4 {[%clk 0:02:54]} 7... Bg7 {[%clk 0:02:49.1]} 8. f3 {[%clk
0:02:51.5]} 8... O-O {[%clk 0:02:45.9]} 9. Bxd7 {[%clk 0:02:50.8]} 9... Bxd7
{[%clk 0:02:44]} 10. Be3 {[%clk 0:02:50.4]} 10... Rc8 {[%clk 0:02:40.6]} 11. Qd3
{[%clk 0:02:44.8]} 11... a6 {[%clk 0:02:34.6]} 12. O-O {[%clk 0:02:42.2]} 12...
Qc7 {[%clk 0:02:33.7]} 13. Nd5 {[%clk 0:02:29.5]} 13... Nxd5 {[%clk 0:02:32.2]}
14. cxd5 {[%clk 0:02:29.1]} 14... Qc4 {[%clk 0:02:31.4]} 15. Qd2 {[%clk
0:02:28.7]} 15... Bb5 {[%clk 0:02:27.4]} 16. Rfc1 {[%clk 0:02:12.3]} 16... Qd3
{[%clk 0:02:24.7]} 17. Nxb5 {[%clk 0:02:04.1]} 17... Qxd2 {[%clk 0:02:23.9]} 18.
Bxd2 {[%clk 0:02:01.5]} 18... axb5 {[%clk 0:02:23.7]} 19. Rxc8 {[%clk
0:01:55.4]} 19... Rxc8 {[%clk 0:02:22.9]} 20. Rc1 {[%clk 0:01:55.5]} 20... Rxc1+
{[%clk 0:02:12.5]} 21. Bxc1 {[%clk 0:01:55.3]} 21... f5 {[%clk 0:02:08.8]} 22.
Kf2 {[%clk 0:01:54.6]} 22... fxe4 {[%clk 0:02:07.5]} 23. fxe4 {[%clk 0:01:54.6]}
23... Kf7 {[%clk 0:02:07]} 24. b3 {[%clk 0:01:52.2]} 24... Be5 {[%clk
0:02:04.5]} 25. h3 {[%clk 0:01:50.1]} 25... e6 {[%clk 0:02:04.5]} 26. Kf3 {[%clk
0:01:44.9]} 26... h5 {[%clk 0:02:01.8]} 27. g4 {[%clk 0:01:43.9]} 27... Kf6
{[%clk 0:01:57.3]} 28. Bd2 {[%clk 0:01:09.9]} 28... exd5 {[%clk 0:01:16.3]} 29.
exd5 {[%clk 0:01:07.4]} 29... hxg4+ {[%clk 0:01:14.9]} 30. hxg4 {[%clk
0:00:59.4]} 30... Bd4 {[%clk 0:01:09.7]} 31. Ke4 {[%clk 0:00:58.9]} 31... Be5
{[%clk 0:01:10.1]} 32. g5+ {[%clk 0:00:45.1]} 32... Ke7 {[%clk 0:01:07.5]} 33.
Kd3 {[%clk 0:00:45.2]} 33... Kd7 {[%clk 0:01:07.8]} 34. Bc3 {[%clk 0:00:30.8]}
34... Bxc3 {[%clk 0:00:49.6]} 35. Kxc3 {[%clk 0:00:30.6]} 35... Kc7 {[%clk
0:00:50.2]} 36. b4 {[%clk 0:00:15.6]} 1/2-1/2

[Event "*** SCC Grand Prix: Titled Tuesday Blitz"]
[Site "Chess.com"]
[Date "2020.07.07"]
[Round "6"]
[White "Chessdemon2019"]
[Black "ljuks68"]
[Result "0-1"]
[WhiteElo "2281"]
[BlackElo "2432"]
[TimeControl "180+1"]
[EndTime "11:05:38 PDT"]
[Termination "ljuks68 won by resignation"]

1. e4 {[%clk 0:03:00.9]} 1... e6 {[%clk 0:02:56.1]} 2. d4 {[%clk 0:02:59.8]}
2... d5 {[%clk 0:02:53.1]} 3. Nc3 {[%clk 0:02:59.3]} 3... Bb4 {[%clk 0:02:49.4]}
4. Ne2 {[%clk 0:02:58.5]} 4... Nc6 {[%clk 0:02:48.5]} 5. a3 {[%clk 0:02:55.3]}
5... Ba5 {[%clk 0:02:47]} 6. b4 {[%clk 0:02:53.2]} 6... Bb6 {[%clk 0:02:46.9]}
7. Bb2 {[%clk 0:02:53.3]} 7... Nge7 {[%clk 0:02:12.6]} 8. g3 {[%clk 0:02:27.2]}
8... e5 {[%clk 0:02:12]} 9. dxe5 {[%clk 0:02:23.9]} 9... Nxe5 {[%clk 0:02:10.5]}
10. Bg2 {[%clk 0:02:24.3]} 10... Nc4 {[%clk 0:02:03.5]} 11. Bc1 {[%clk
0:02:20.6]} 11... c6 {[%clk 0:01:35.6]} 12. exd5 {[%clk 0:01:55.5]} 12... Nxd5
{[%clk 0:01:32.1]} 13. Nxd5 {[%clk 0:01:53.5]} 13... cxd5 {[%clk 0:01:31.9]} 14.
Qxd5 {[%clk 0:01:51.4]} 14... Qf6 {[%clk 0:01:31.1]} 15. Qe4+ {[%clk 0:01:40.3]}
15... Be6 {[%clk 0:01:29]} 16. c3 {[%clk 0:01:11.4]} 16... Qxf2+ {[%clk
0:01:23.3]} 17. Kd1 {[%clk 0:01:11.7]} 17... O-O-O+ {[%clk 0:00:55.2]} 18. Kc2
{[%clk 0:00:52.4]} 18... Bf5 {[%clk 0:00:54.5]} 19. Kb3 {[%clk 0:00:45.2]} 19...
Bxe4 {[%clk 0:00:52.9]} 20. Bxe4 {[%clk 0:00:45.4]} 20... Qxe2 {[%clk
0:00:52.8]} 21. Bf5+ {[%clk 0:00:45.9]} 21... Kb8 {[%clk 0:00:51.5]} 22. Bf4+
{[%clk 0:00:46.2]} 22... Bc7 {[%clk 0:00:47.9]} 23. Bxc7+ {[%clk 0:00:45.3]}
23... Kxc7 {[%clk 0:00:47.4]} 24. Rhe1 {[%clk 0:00:46]} 24... Nd2+ {[%clk
0:00:44.5]} 25. Kc2 {[%clk 0:00:42.9]} 25... Qf2 {[%clk 0:00:41.5]} 26. Bd3
{[%clk 0:00:38.4]} 26... Rxd3 {[%clk 0:00:35.7]} 27. Kxd3 {[%clk 0:00:37.7]}
27... Rd8+ {[%clk 0:00:36]} 28. Kc2 {[%clk 0:00:38.3]} 28... Nc4+ {[%clk
0:00:31.2]} 29. Kb3 {[%clk 0:00:38.2]} 29... b5 {[%clk 0:00:31.6]} 30. Re7+
{[%clk 0:00:34.3]} 30... Kc8 {[%clk 0:00:30.3]} 31. Ra2 {[%clk 0:00:32.6]} 31...
Rd2 {[%clk 0:00:28.2]} 0-1

[Event "*** SCC Grand Prix: Titled Tuesday Blitz"]
[Site "Chess.com"]
[Date "2020.07.07"]
[Round "6"]
[White "aNaartjieZA"]
[Black "Tsyhanchuk_Stanislav"]
[Result "0-1"]
[WhiteElo "2531"]
[BlackElo "2426"]
[TimeControl "180+1"]
[EndTime "11:05:39 PDT"]
[Termination "Tsyhanchuk_Stanislav won by resignation"]

1. e4 {[%clk 0:03:00.9]} 1... c5 {[%clk 0:02:56.7]} 2. Nf3 {[%clk 0:03:00.8]}
2... Nc6 {[%clk 0:02:57]} 3. g3 {[%clk 0:03:01]} 3... d5 {[%clk 0:02:56.6]} 4.
exd5 {[%clk 0:02:59.2]} 4... Qxd5 {[%clk 0:02:57.5]} 5. Nc3 {[%clk 0:02:59.1]}
5... Qe6+ {[%clk 0:02:56.8]} 6. Qe2 {[%clk 0:02:54.3]} 6... Nf6 {[%clk
0:02:51.6]} 7. Qxe6 {[%clk 0:02:52.9]} 7... Bxe6 {[%clk 0:02:50.8]} 8. Bb5
{[%clk 0:02:53.3]} 8... Bd7 {[%clk 0:02:46.3]} 9. d3 {[%clk 0:02:49.7]} 9... a6
{[%clk 0:02:45.8]} 10. Bc4 {[%clk 0:02:46.5]} 10... e6 {[%clk 0:02:45.8]} 11.
Bg5 {[%clk 0:02:44.2]} 11... Be7 {[%clk 0:02:41.3]} 12. a3 {[%clk 0:02:43.6]}
12... h6 {[%clk 0:02:39]} 13. Be3 {[%clk 0:02:38.4]} 13... O-O-O {[%clk
0:02:37.4]} 14. O-O-O {[%clk 0:02:37.5]} 14... Ng4 {[%clk 0:02:36.7]} 15. h3
{[%clk 0:02:33.8]} 15... Nxe3 {[%clk 0:02:36.2]} 16. fxe3 {[%clk 0:02:34.7]}
16... b5 {[%clk 0:02:33.7]} 17. Ba2 {[%clk 0:02:33.2]} 17... Bf6 {[%clk
0:02:33.2]} 18. Ne4 {[%clk 0:02:32.3]} 18... Be7 {[%clk 0:02:33.3]} 19. Rhf1
{[%clk 0:02:29.4]} 19... Kc7 {[%clk 0:02:31.3]} 20. g4 {[%clk 0:02:16.3]} 20...
h5 {[%clk 0:02:29.8]} 21. g5 {[%clk 0:02:16.2]} 21... f5 {[%clk 0:02:27.2]} 22.
gxf6 {[%clk 0:02:11.8]} 22... gxf6 {[%clk 0:02:28.1]} 23. h4 {[%clk 0:02:08.7]}
23... Rhg8 {[%clk 0:02:20.8]} 24. Rg1 {[%clk 0:02:03.4]} 24... Rg4 {[%clk
0:02:15.5]} 25. Rdf1 {[%clk 0:02:00.3]} 25... Rdg8 {[%clk 0:02:11.9]} 26. Rh1
{[%clk 0:02:00.4]} 26... c4 {[%clk 0:01:57.1]} 27. Nf2 {[%clk 0:01:58.4]} 27...
Rg3 {[%clk 0:01:56.9]} 28. Ne4 {[%clk 0:01:58.3]} 28... R3g4 {[%clk 0:01:45.3]}
29. Nf2 {[%clk 0:01:39.1]} 29... Rg2 {[%clk 0:01:45.1]} 30. Nh3 {[%clk
0:01:37.8]} 30... cxd3 {[%clk 0:01:41.7]} 31. cxd3 {[%clk 0:01:37.4]} 31... Re2
{[%clk 0:01:34.7]} 32. e4 {[%clk 0:01:32.4]} 32... Bxa3 {[%clk 0:01:22.4]} 33.
Nd2 {[%clk 0:01:14.7]} 33... Bxb2+ {[%clk 0:01:20.3]} 34. Kd1 {[%clk 0:01:14.9]}
34... Rgg2 {[%clk 0:01:18.1]} 35. Nf3 {[%clk 0:01:12.3]} 35... Bc3 {[%clk
0:01:00.7]} 36. Nf4 {[%clk 0:01:11.3]} 36... Rxa2 {[%clk 0:01:00.2]} 37. Nxg2
{[%clk 0:01:10.8]} 37... Rxg2 {[%clk 0:01:01.1]} 38. Rh2 {[%clk 0:01:10.7]}
38... Rxh2 {[%clk 0:00:57.8]} 39. Nxh2 {[%clk 0:01:10.7]} 39... b4 {[%clk
0:00:58]} 40. Nf3 {[%clk 0:01:10.1]} 40... Ne5 {[%clk 0:00:51.2]} 41. Nxe5
{[%clk 0:01:08.7]} 41... Bxe5 {[%clk 0:00:52.1]} 42. Kc2 {[%clk 0:01:08.9]}
42... Ba4+ {[%clk 0:00:50.3]} 43. Kb1 {[%clk 0:01:08.6]} 43... Bb5 {[%clk
0:00:48.4]} 44. Kc2 {[%clk 0:01:07.7]} 44... Ba4+ {[%clk 0:00:48.7]} 45. Kb1
{[%clk 0:01:07.5]} 45... b3 {[%clk 0:00:49.6]} 46. Rc1+ {[%clk 0:01:05.4]} 46...
Kd6 {[%clk 0:00:48.5]} 47. Rc8 {[%clk 0:01:05.2]} 47... Bb5 {[%clk 0:00:47.4]}
48. Kc1 {[%clk 0:01:04.3]} 48... Kd7 {[%clk 0:00:45.5]} 49. Rh8 {[%clk
0:01:01.8]} 49... b2+ {[%clk 0:00:45]} 0-1

[Event "*** SCC Grand Prix: Titled Tuesday Blitz"]
[Site "Chess.com"]
[Date "2020.07.07"]
[Round "6"]
[White "Salem-AR"]
[Black "GMNickPert"]
[Result "1-0"]
[WhiteElo "2921"]
[BlackElo "2639"]
[TimeControl "180+1"]
[EndTime "11:05:40 PDT"]
[Termination "Salem-AR won by resignation"]

1. d4 {[%clk 0:03:00.9]} 1... e6 {[%clk 0:02:58]} 2. c4 {[%clk 0:03:01.5]} 2...
f5 {[%clk 0:02:57.9]} 3. g3 {[%clk 0:03:00.3]} 3... Nf6 {[%clk 0:02:58.1]} 4.
Bg2 {[%clk 0:03:00.9]} 4... Be7 {[%clk 0:02:58.1]} 5. Nc3 {[%clk 0:02:59.5]}
5... O-O {[%clk 0:02:57.9]} 6. Nf3 {[%clk 0:02:57.5]} 6... d6 {[%clk 0:02:57.2]}
7. O-O {[%clk 0:02:57.4]} 7... Ne4 {[%clk 0:02:57.5]} 8. Qc2 {[%clk 0:02:52.7]}
8... Nxc3 {[%clk 0:02:56.7]} 9. Qxc3 {[%clk 0:02:52.9]} 9... a5 {[%clk
0:02:54.7]} 10. Re1 {[%clk 0:02:49.5]} 10... Nc6 {[%clk 0:02:52.1]} 11. e4
{[%clk 0:02:47.1]} 11... e5 {[%clk 0:02:49.3]} 12. d5 {[%clk 0:02:42]} 12... Nb4
{[%clk 0:02:46.3]} 13. a3 {[%clk 0:02:25]} 13... fxe4 {[%clk 0:02:45.6]} 14.
Rxe4 {[%clk 0:02:18.1]} 14... Bf5 {[%clk 0:02:45.2]} 15. Nd2 {[%clk 0:01:40.9]}
15... Bxe4 {[%clk 0:01:59.3]} 16. Nxe4 {[%clk 0:01:41.8]} 16... Na6 {[%clk
0:01:51.8]} 17. Be3 {[%clk 0:01:39.4]} 17... Nc5 {[%clk 0:01:48.9]} 18. Bxc5
{[%clk 0:01:38.6]} 18... dxc5 {[%clk 0:01:49.8]} 19. Bh3 {[%clk 0:01:23.4]}
19... Bd6 {[%clk 0:01:43.4]} 20. Be6+ {[%clk 0:01:22.5]} 20... Kh8 {[%clk
0:01:43.3]} 21. h4 {[%clk 0:01:23.4]} 21... h6 {[%clk 0:01:43.1]} 22. Qd3 {[%clk
0:01:05.7]} 22... Qe7 {[%clk 0:01:42.7]} 23. Kg2 {[%clk 0:01:03.9]} 23... Rae8
{[%clk 0:01:42]} 24. Rh1 {[%clk 0:01:02.6]} 24... g6 {[%clk 0:01:36.3]} 25. Qd2
{[%clk 0:00:51.8]} 25... Qg7 {[%clk 0:01:34.8]} 26. Qxa5 {[%clk 0:00:51.1]}
26... b6 {[%clk 0:01:27.6]} 27. Qd2 {[%clk 0:00:51.1]} 27... Re7 {[%clk
0:01:26.8]} 28. b4 {[%clk 0:00:43.1]} 28... Ree8 {[%clk 0:01:19.1]} 29. Re1
{[%clk 0:00:30.7]} 29... Ra8 {[%clk 0:01:18.1]} 30. Re3 {[%clk 0:00:24.5]} 30...
Ra4 {[%clk 0:01:15.7]} 31. Qc2 {[%clk 0:00:23.3]} 31... Rfa8 {[%clk 0:01:14]}
32. Rf3 {[%clk 0:00:23.7]} 32... Rxa3 {[%clk 0:01:02.7]} 33. Rf7 {[%clk
0:00:23.8]} 33... Qg8 {[%clk 0:01:02.4]} 34. Nf6 {[%clk 0:00:21.3]} 34... Ra2
{[%clk 0:00:56.8]} 35. Qc1 {[%clk 0:00:20.5]} 35... Qxf7 {[%clk 0:00:53.7]} 36.
Qxh6+ {[%clk 0:00:20.2]} 1-0

[Event "*** SCC Grand Prix: Titled Tuesday Blitz"]
[Site "Chess.com"]
[Date "2020.07.07"]
[Round "6"]
[White "Chernobay_Artem"]
[Black "VerdeNotte"]
[Result "1-0"]
[WhiteElo "2624"]
[BlackElo "2765"]
[TimeControl "180+1"]
[EndTime "11:05:41 PDT"]
[Termination "Chernobay_Artem won by checkmate"]

1. d4 {[%clk 0:03:00.9]} 1... g6 {[%clk 0:02:53.2]} 2. c4 {[%clk 0:03:01.2]}
2... Nf6 {[%clk 0:02:52.8]} 3. Nc3 {[%clk 0:02:59.9]} 3... Bg7 {[%clk 0:02:51]}
4. e4 {[%clk 0:02:59.7]} 4... O-O {[%clk 0:02:51]} 5. Nf3 {[%clk 0:03:00.2]}
5... d6 {[%clk 0:02:51.4]} 6. Be2 {[%clk 0:03:00.4]} 6... Nbd7 {[%clk
0:02:51.9]} 7. O-O {[%clk 0:03:00.4]} 7... e5 {[%clk 0:02:52.3]} 8. Be3 {[%clk
0:02:58.5]} 8... Qe7 {[%clk 0:02:52.4]} 9. Qc2 {[%clk 0:02:25.2]} 9... c6 {[%clk
0:02:51]} 10. Rad1 {[%clk 0:02:19.9]} 10... h6 {[%clk 0:02:50.9]} 11. h3 {[%clk
0:02:17.3]} 11... exd4 {[%clk 0:02:47.9]} 12. Nxd4 {[%clk 0:02:14.8]} 12... Nc5
{[%clk 0:02:47.9]} 13. Bf3 {[%clk 0:01:43.4]} 13... Re8 {[%clk 0:02:44.2]} 14.
Rfe1 {[%clk 0:01:42.6]} 14... a5 {[%clk 0:02:38.9]} 15. Bf4 {[%clk 0:01:38.9]}
15... Nfd7 {[%clk 0:02:32.3]} 16. Qd2 {[%clk 0:01:35.3]} 16... Ne5 {[%clk
0:02:26.7]} 17. Be2 {[%clk 0:01:34.1]} 17... Kh7 {[%clk 0:02:12.6]} 18. Bg3
{[%clk 0:01:33.8]} 18... h5 {[%clk 0:02:08.7]} 19. f4 {[%clk 0:01:33.3]} 19...
Ned7 {[%clk 0:02:04.6]} 20. Bf3 {[%clk 0:01:31.7]} 20... Bh6 {[%clk 0:01:53.2]}
21. Qf2 {[%clk 0:01:20.4]} 21... Qf6 {[%clk 0:01:44.7]} 22. Nde2 {[%clk
0:01:14.4]} 22... Re6 {[%clk 0:01:29.7]} 23. Bh4 {[%clk 0:01:12]} 23... g5
{[%clk 0:01:26.1]} 24. e5 {[%clk 0:00:58.2]} 24... dxe5 {[%clk 0:01:22.1]} 25.
Ne4 {[%clk 0:00:57.9]} 25... Nxe4 {[%clk 0:01:17.2]} 26. Bxe4+ {[%clk
0:00:58.8]} 26... Kg7 {[%clk 0:01:16.1]} 27. fxg5 {[%clk 0:00:53]} 27... Bxg5
{[%clk 0:01:16.2]} 28. Qg3 {[%clk 0:00:52.4]} 28... Kh6 {[%clk 0:01:16.3]} 29.
Rf1 {[%clk 0:00:49.2]} 29... Bxh4 {[%clk 0:01:06.5]} 30. Rxf6+ {[%clk
0:00:47.7]} 30... Bxf6 {[%clk 0:01:07.4]} 31. Qg8 {[%clk 0:00:44.3]} 31... Nc5
{[%clk 0:00:57.6]} 32. Qh7+ {[%clk 0:00:28.4]} 32... Kg5 {[%clk 0:00:57.6]} 33.
Ng3 {[%clk 0:00:28.5]} 33... Kf4 {[%clk 0:00:41]} 34. Qf5+ {[%clk 0:00:19.7]}
34... Kxg3 {[%clk 0:00:41.1]} 35. Qf2# {[%clk 0:00:20.1]} 1-0

[Event "*** SCC Grand Prix: Titled Tuesday Blitz"]
[Site "Chess.com"]
[Date "2020.07.07"]
[Round "6"]
[White "goofypenguin96"]
[Black "AldokhinIvan"]
[Result "0-1"]
[WhiteElo "2390"]
[BlackElo "2525"]
[TimeControl "180+1"]
[EndTime "11:05:41 PDT"]
[Termination "AldokhinIvan won on time"]

1. e4 {[%clk 0:01:48.7]} 1... c5 {[%clk 0:02:57]} 2. Nf3 {[%clk 0:01:47.6]} 2...
e6 {[%clk 0:02:57.9]} 3. c3 {[%clk 0:01:47.5]} 3... Nf6 {[%clk 0:02:57.8]} 4. e5
{[%clk 0:01:46.1]} 4... Nd5 {[%clk 0:02:57.9]} 5. d4 {[%clk 0:01:47]} 5... cxd4
{[%clk 0:02:57.9]} 6. cxd4 {[%clk 0:01:47.9]} 6... d6 {[%clk 0:02:58.4]} 7. exd6
{[%clk 0:01:48.2]} 7... Bxd6 {[%clk 0:02:57.8]} 8. Nc3 {[%clk 0:01:48.5]} 8...
Nc6 {[%clk 0:02:57.7]} 9. Nxd5 {[%clk 0:01:47.9]} 9... exd5 {[%clk 0:02:57.5]}
10. Be2 {[%clk 0:01:48.4]} 10... O-O {[%clk 0:02:57.1]} 11. O-O {[%clk
0:01:48.3]} 11... Bg4 {[%clk 0:02:57.4]} 12. h3 {[%clk 0:01:48.1]} 12... Bh5
{[%clk 0:02:57.4]} 13. b3 {[%clk 0:01:44.9]} 13... Qf6 {[%clk 0:02:53.1]} 14.
Bb2 {[%clk 0:01:42.5]} 14... Rfe8 {[%clk 0:02:51.4]} 15. Qd3 {[%clk 0:00:58.9]}
15... Re4 {[%clk 0:02:27.5]} 16. Rae1 {[%clk 0:00:49.6]} 16... Rae8 {[%clk
0:02:26.8]} 17. Qd1 {[%clk 0:00:29.3]} 17... Bb4 {[%clk 0:02:10.3]} 18. Ne5
{[%clk 0:00:22.5]} 18... Bg6 {[%clk 0:01:51.6]} 19. Bf3 {[%clk 0:00:16.3]} 19...
Rxe1 {[%clk 0:01:49.7]} 20. Rxe1 {[%clk 0:00:17.2]} 20... Bxe1 {[%clk
0:01:49.4]} 21. Qxe1 {[%clk 0:00:18.1]} 21... Nxe5 {[%clk 0:01:45.4]} 22. dxe5
{[%clk 0:00:19]} 22... Qc6 {[%clk 0:01:39.5]} 23. Qa5 {[%clk 0:00:18.7]} 23...
Be4 {[%clk 0:01:36.1]} 24. Bxe4 {[%clk 0:00:16.3]} 24... dxe4 {[%clk 0:01:36.1]}
25. Qxa7 {[%clk 0:00:16.3]} 25... Rd8 {[%clk 0:01:29]} 26. Kh2 {[%clk
0:00:12.3]} 26... h6 {[%clk 0:01:25.3]} 27. Qa5 {[%clk 0:00:10.5]} 27... Qd5
{[%clk 0:01:23.3]} 28. Qb4 {[%clk 0:00:05.1]} 28... Qd2 {[%clk 0:01:21.1]} 29.
Qb6 {[%clk 0:00:03.9]} 29... Rd3 {[%clk 0:01:11.6]} 30. Ba3 {[%clk 0:00:02.2]}
30... Qf4+ {[%clk 0:01:06]} 31. g3 {[%clk 0:00:02]} 31... Qf3 {[%clk 0:01:05.1]}
32. Bd6 {[%clk 0:00:01.1]} 32... Rd1 {[%clk 0:01:02]} 33. Qd8+ {[%clk
0:00:01.1]} 33... Kh7 {[%clk 0:01:01.9]} 0-1

[Event "*** SCC Grand Prix: Titled Tuesday Blitz"]
[Site "Chess.com"]
[Date "2020.07.07"]
[Round "6"]
[White "ammarzooqi"]
[Black "ambaixador"]
[Result "1-0"]
[WhiteElo "2187"]
[BlackElo "2316"]
[TimeControl "180+1"]
[EndTime "11:05:44 PDT"]
[Termination "ammarzooqi won by checkmate"]

1. e4 {[%clk 0:03:00]} 1... c6 {[%clk 0:02:59.6]} 2. c4 {[%clk 0:02:59.2]} 2...
d5 {[%clk 0:02:59.6]} 3. cxd5 {[%clk 0:03:00.1]} 3... cxd5 {[%clk 0:03:00.5]} 4.
exd5 {[%clk 0:03:01]} 4... Nf6 {[%clk 0:03:00.4]} 5. Nc3 {[%clk 0:02:59.7]} 5...
Nxd5 {[%clk 0:03:00.3]} 6. Bc4 {[%clk 0:02:59.6]} 6... e6 {[%clk 0:02:58.9]} 7.
Nf3 {[%clk 0:02:59.2]} 7... Nc6 {[%clk 0:02:58.4]} 8. O-O {[%clk 0:02:58.7]}
8... Be7 {[%clk 0:02:58]} 9. d4 {[%clk 0:02:58.3]} 9... O-O {[%clk 0:02:57.7]}
10. Re1 {[%clk 0:02:57.4]} 10... Nxc3 {[%clk 0:02:45.4]} 11. bxc3 {[%clk
0:02:57]} 11... b6 {[%clk 0:02:44]} 12. Bd3 {[%clk 0:02:50.5]} 12... Bb7 {[%clk
0:02:41.7]} 13. Bf4 {[%clk 0:02:49.2]} 13... Bd6 {[%clk 0:02:39.7]} 14. Bg5
{[%clk 0:02:45.1]} 14... Qc7 {[%clk 0:02:38.9]} 15. Qe2 {[%clk 0:02:41.3]} 15...
Ne7 {[%clk 0:02:26.5]} 16. Rac1 {[%clk 0:02:28.3]} 16... Nd5 {[%clk 0:02:21.3]}
17. Ne5 {[%clk 0:02:16.2]} 17... f6 {[%clk 0:01:31.1]} 18. c4 {[%clk 0:01:45.9]}
18... Nb4 {[%clk 0:01:17.2]} 19. Bxh7+ {[%clk 0:01:29.1]} 19... Kxh7 {[%clk
0:01:18.1]} 20. Qh5+ {[%clk 0:01:28.1]} 20... Kg8 {[%clk 0:01:18.3]} 21. Ng6
{[%clk 0:01:22.1]} 21... fxg5 {[%clk 0:01:13.3]} 22. Rxe6 {[%clk 0:01:07.4]}
22... Rf6 {[%clk 0:00:26.9]} 23. Rxf6 {[%clk 0:00:48.8]} 23... gxf6 {[%clk
0:00:27.8]} 24. Qh8+ {[%clk 0:00:49]} 24... Kf7 {[%clk 0:00:28.2]} 25. Qh7+
{[%clk 0:00:49.1]} 25... Ke6 {[%clk 0:00:28.2]} 26. Re1+ {[%clk 0:00:47.2]}
26... Kf5 {[%clk 0:00:13.4]} 27. Ne7+ {[%clk 0:00:43]} 27... Kf4 {[%clk
0:00:11.6]} 28. Qf5# {[%clk 0:00:41.6]} 1-0